bitfinex/quotes_ETHUSD_20250708
["timestamp","ask_amount","ask_price","bid_price","bid_amount"]
[1751987653563,0.1944,2570.9,2570.8,0.36210824]
[1751987653878,6.1594,2570.9,2570.8,0.36210824]
[1751987655471,6.1594,2570.9,2570.8,4.25194797]
[1751987655646,5.965,2570.9,2570.8,0.36210824]
[1751987655845,0.002,2571.1,2570.8,0.36210824]
[1751987656076,9.85642159,2571.1,2570.9,0.36210824]
[1751987656279,19.85642159,2571.1,2571.0,0.36210824]
[1751987658588,9.85642159,2571.1,2571.0,0.36210824]
[1751987659775,8.84377747,2571.1,2571.0,0.36210824]
[1751987660704,19.00717747,2571.1,2571.0,0.36210824]
[1751987661882,18.50082096,2571.1,2571.0,0.36210824]
[1751987662803,19.89165356,2571.1,2571.0,0.36210824]
[1751987663168,27.78165356,2571.1,2571.0,0.36210824]
[1751987663568,3.88990396,2570.8,2570.3,4.86672785]
[1751987663790,6.1584,2570.7,2570.4,3.89043382]
[1751987664999,5.90522932,2570.7,2570.5,0.36323858]
[1751987665502,6.06862932,2570.7,2570.5,0.36323858]
[1751987665816,5.90522932,2570.7,2570.6,0.36349723]
[1751987666004,5.01911833,2570.7,2570.6,0.36349819]
[1751987666700,5.01911833,2570.7,2570.6,3.89014237]
[1751987666875,5.01911833,2570.7,2570.5,4.68822043]
[1751987667066,5.01911833,2570.7,2570.5,5.56553513]
[1751987667469,3.7532695,2570.7,2570.6,0.36402424]
[1751987667903,3.24692726,2570.7,2570.6,0.36402424]
[1751987668406,7.13691831,2570.7,2570.6,0.36402424]
[1751987668618,8.53402785,2570.7,2570.6,0.36402424]
[1751987668916,4.64405743,2570.7,2570.6,0.36402424]
[1751987669201,4.64405743,2570.7,2570.3,4.91121296]
[1751987669384,1.39713017,2570.6,2570.4,3.89042871]
[1751987669901,0.1944,2570.7,2570.5,3.89029371]
[1751987670079,0.1944,2570.7,2570.4,3.89042871]
[1751987670080,6.1574,2570.7,2570.4,3.89037276]
[1751987670266,6.1574,2570.7,2570.3,5.79142008]
[1751987670267,1.39901943,2570.6,2570.3,5.79142008]
[1751987670673,1.39901943,2570.6,2570.3,1.90089533]
[1751987670908,1.39901943,2570.6,2570.5,0.001]
[1751987671120,1.76320624,2570.6,2570.3,1.0207]
[1751987671310,0.36418681,2570.5,2570.3,0.1944]
[1751987671623,0.36418681,2570.4,2570.3,0.1944]
[1751987671783,0.36418681,2570.4,2570.0,4.08536783]
[1751987671784,0.55858681,2570.4,2570.0,4.08536783]
[1751987671989,0.36418681,2570.3,2570.1,3.89089397]
[1751987672187,0.1944,2570.4,2570.1,3.89089397]
[1751987672188,0.36418681,2570.2,2570.1,3.89089397]
[1751987675203,0.36418681,2570.2,2570.0,4.08536688]
[1751987675411,0.1944,2570.4,2570.1,3.89089918]
[1751987675603,0.36404433,2570.3,2570.1,3.89089918]
[1751987675811,0.36404433,2570.2,2570.1,3.89089918]
[1751987676004,0.36404433,2570.2,2570.0,4.08543463]
[1751987676204,0.36404433,2570.1,2570.0,4.08543463]
[1751987676718,0.36404433,2570.1,2569.8,0.973]
[1751987676920,0.36404433,2570.0,2569.8,0.1944]
[1751987677218,0.36404433,2570.0,2569.4,3.50205617]
[1751987677219,0.36404433,2569.9,2569.5,4.8438287]
[1751987677386,0.36404433,2569.8,2569.5,4.8438287]
[1751987677591,0.36404433,2569.7,2569.5,4.8438287]
[1751987677794,0.36404433,2569.6,2569.5,4.8438287]
[1751987678420,0.36404433,2569.6,2569.5,5.9898825]
[1751987679092,4.0855663,2570.0,2569.6,3.89165628]
[1751987679093,5.962,2569.9,2569.6,3.89165628]
[1751987679288,0.36354984,2569.8,2569.7,3.89148772]
[1751987679516,0.36354984,2569.8,2569.7,5.90864073]
[1751987680123,0.36354984,2569.8,2569.7,5.86972569]
[1751987680635,0.36354984,2569.8,2569.7,1.97823797]
[1751987680857,0.36354984,2569.8,2569.5,1.90753573]
[1751987681121,0.36354984,2569.7,2569.5,2.10193573]
[1751987681346,0.36354984,2569.6,2569.5,0.9948]
[1751987681627,0.1944,2570.0,2569.5,0.1944]
[1751987681628,4.25508039,2569.7,2569.5,0.1944]
[1751987681839,4.25522531,2569.6,2569.3,0.7995]
[1751987682129,3.89167547,2569.6,2569.3,0.9939]
[1751987682637,3.89156306,2569.7,2569.3,0.9939]
[1751987682932,0.36287447,2569.6,2569.3,0.9939]
[1751987683243,0.36287447,2569.6,2569.3,0.1944]
[1751987683455,0.36287447,2569.5,2569.3,0.1944]
[1751987684337,4.25473526,2569.5,2569.3,0.1944]
[1751987684504,3.8917419,2569.6,2569.3,0.1944]
[1751987684860,3.8917419,2569.6,2569.0,0.001]
[1751987684861,0.3578,2569.4,2569.0,0.001]
[1751987685041,3.89237029,2569.2,2569.0,0.001]
[1751987685536,3.89241368,2569.1,2569.0,0.001]
[1751987685904,4.25474622,2569.1,2568.7,0.19142541]
[1751987686204,4.25474622,2569.1,2568.7,4.08443112]
[1751987686205,0.36233254,2569.0,2568.7,4.08443112]
[1751987686401,0.36233254,2568.9,2568.7,4.08443907]
[1751987686597,0.36233254,2568.8,2568.7,4.08443907]
[1751987687604,0.36233254,2568.8,2568.7,5.00884939]
[1751987687831,0.36233254,2568.8,2568.7,6.33124939]
[1751987688046,0.36233254,2568.8,2568.7,12.29324939]
[1751987688225,0.36233254,2568.8,2568.7,12.2543192]
[1751987688760,8.0844,2569.7,2569.6,3.89165628]
[1751987689042,6.1574,2569.9,2569.6,3.89165628]
[1751987689254,6.1574,2569.9,2569.6,4.08605628]
[1751987689736,0.1944,2569.9,2569.6,4.08605628]
[1751987690035,9.85376499,2570.2,2569.7,3.89141758]
[1751987690338,0.1944,2570.1,2569.7,3.89141758]
[1751987690704,0.1944,2570.1,2569.8,3.89128238]
[1751987691127,0.1944,2570.1,2569.9,3.89113032]
[1751987691319,5.962,2570.2,2569.8,4.08567912]
[1751987691939,5.962,2570.2,2569.8,3.57920299]
[1751987692326,0.1944,2570.3,2570.0,3.8909384]
[1751987692639,6.1564,2570.3,2569.9,4.67599756]
[1751987692838,16.1564,2570.3,2569.9,4.67599756]
[1751987693039,20.04699733,2570.3,2569.9,4.67599756]
[1751987693213,20.04699733,2570.3,2569.9,0.7848]
[1751987693415,0.1634,2569.8,2569.1,3.89226503]
[1751987693638,10.0,2569.7,2569.0,4.70375422]
[1751987693936,3.89190799,2569.5,2569.0,4.70375422]
[1751987694143,3.89190799,2569.5,2569.0,10.66575422]
[1751987694310,3.89179286,2569.6,2569.1,1.06657542]
[1751987694511,13.89155401,2569.7,2569.1,4.9979097]
[1751987695044,3.89182555,2569.5,2569.1,1.10549955]
[1751987695539,3.89172555,2569.6,2569.1,1.10549955]
[1751987695756,13.89164138,2569.7,2569.1,0.03892413]
[1751987696052,10.0,2569.5,2569.0,0.8113]
[1751987696252,13.89189321,2569.5,2569.0,10.66579106]
[1751987696436,13.89153585,2569.7,2569.1,0.03892413]
[1751987696638,10.0,2569.7,2569.3,3.89202622]
[1751987696939,13.89153292,2569.7,2569.3,0.82123963]
[1751987697746,10.0,2569.7,2569.3,4.71333571]
[1751987698857,13.89151358,2569.7,2569.3,4.71333571]
[1751987699033,10.0,2569.7,2569.3,4.71333571]
[1751987699230,10.0,2569.7,2569.3,4.67441461]
[1751987699750,13.89150677,2569.7,2569.3,0.78231853]
[1751987699973,13.89150677,2569.7,2569.2,3.89217792]
[1751987700177,3.8916667,2569.6,2569.1,3.89234119]
[1751987700469,3.89165628,2569.6,2569.1,9.85439143]
[1751987700625,13.89157489,2569.7,2569.3,3.89208271]
[1751987700824,0.36224712,2569.6,2569.3,3.89208271]
[1751987701067,0.36224712,2569.5,2569.3,3.89208271]
[1751987701238,0.36224712,2569.4,2569.3,3.89208271]
[1751987702251,0.36224712,2569.4,2569.3,5.26671637]
[1751987702643,0.36224712,2569.4,2569.3,6.12793747]
[1751987703425,0.36224712,2569.4,2569.3,2.39133366]
[1751987703650,0.36224712,2569.4,2569.3,10.87081069]
[1751987704559,0.36224712,2569.4,2569.3,6.9787]
[1751987705059,0.36224712,2569.4,2569.3,0.1944]
[1751987707126,10.0,2569.3,2568.9,9.85465657]
[1751987707371,0.36224712,2569.2,2569.0,3.89250441]
[1751987707532,0.36224712,2569.1,2569.0,3.89250441]
[1751987707861,0.36224712,2569.1,2568.9,3.89267733]
[1751987708085,3.89207663,2569.4,2569.0,0.1944]
[1751987708396,3.89207663,2569.4,2568.8,3.89286534]
[1751987708397,4.44941362,2569.3,2568.8,0.1944]
[1751987708544,4.25526532,2569.2,2568.9,5.962]
[1751987708862,4.25534206,2569.1,2568.9,5.962]
[1751987709027,3.89271672,2568.9,2568.8,0.1944]
[1751987709227,3.89271672,2568.9,2568.6,0.0707911]
[1751987709228,0.36289678,2568.9,2568.6,0.0707911]
[1751987709528,0.36289678,2568.8,2568.6,4.15826609]
[1751987709754,0.36289678,2568.7,2568.6,0.2651911]
[1751987712368,0.36289678,2568.7,2568.6,4.15836247]
[1751987712527,0.36289678,2568.7,2568.6,5.32054656]
[1751987712732,0.36289678,2568.7,2568.6,5.87054656]
[1751987713868,0.36289678,2568.7,2568.6,11.83254656]
[1751987714762,0.36289678,2568.7,2568.6,12.62824656]
[1751987715952,1.39315168,2569.5,2569.1,3.89229701]
[1751987716149,0.36261572,2569.4,2569.2,3.89220184]
[1751987716341,0.36261572,2569.3,2569.2,3.89220184]
[1751987716541,0.36261572,2569.3,2569.2,3.93112446]
[1751987716742,0.36261572,2569.3,2569.2,4.12552446]
[1751987716942,0.36261572,2569.3,2569.2,5.60319811]
[1751987717264,0.36261572,2569.3,2569.2,2.22207365]
[1751987717470,0.36261572,2569.3,2569.2,6.11433583]
[1751987718654,0.36261572,2569.3,2569.2,6.92565845]
[1751987719057,1.58773637,2570.2,2569.8,3.89129082]
[1751987719237,1.52309171,2570.1,2569.7,6.7763]
[1751987719441,1.75604756,2570.0,2569.8,3.89128404]
[1751987719673,0.36271119,2569.9,2569.7,10.86211985]
[1751987719969,0.36271119,2569.8,2569.7,10.86211985]
[1751987720138,0.36271119,2569.8,2569.7,6.9707]
[1751987720338,0.36271119,2569.8,2569.7,0.1944]
[1751987720558,0.36271119,2569.8,2569.7,6.1564]
[1751987720762,0.36271119,2569.8,2569.7,4.08590484]
[1751987721967,0.36271119,2569.8,2569.7,4.95271988]
[1751987722174,0.36271119,2569.8,2569.7,10.91471988]
[1751987722368,0.36271119,2569.8,2569.7,10.87580484]
[1751987723081,0.36271119,2569.8,2569.7,12.87823218]
[1751987723297,10.1944,2570.5,2570.1,3.89074928]
[1751987723492,0.36272533,2570.4,2570.2,3.8906265]
[1751987723648,0.1654,2570.8,2570.4,3.89044506]
[1751987723847,0.55718651,2570.7,2570.4,3.89044506]
[1751987724079,0.36278651,2570.6,2570.4,3.89044506]
[1751987724382,0.1944,2570.7,2570.4,3.89044506]
[1751987724383,0.36278651,2570.5,2570.4,3.89044506]
[1751987724549,0.3626071,2570.6,2570.5,3.89023643]
[1751987725146,0.3626071,2570.7,2570.5,3.89023643]
[1751987725464,0.3626071,2570.6,2570.5,3.89023643]
[1751987725666,0.3626071,2570.6,2570.5,9.85123643]
[1751987726667,0.3626071,2570.7,2570.5,9.8512649]
[1751987726858,0.3626071,2570.6,2570.5,5.961]
[1751987727059,0.3626071,2570.6,2570.5,9.85127237]
[1751987727595,0.36197192,2570.7,2570.6,3.89014237]
[1751987727760,0.36196979,2570.7,2570.6,3.89014237]
[1751987728266,0.36396979,2570.8,2570.6,3.89014237]
[1751987728486,0.36196979,2570.7,2570.6,3.89014237]
[1751987728681,0.36184019,2570.7,2570.6,3.8900713]
[1751987728883,0.36384019,2570.8,2570.5,9.85125199]
[1751987729081,0.36184019,2570.7,2570.6,3.89014237]
[1751987729281,0.36370684,2570.8,2570.7,3.88999105]
[1751987729486,0.36370929,2570.8,2570.6,3.89008597]
[1751987729892,0.36370929,2570.8,2570.5,9.85122286]
[1751987730581,0.36370929,2570.8,2570.4,4.08484133]
[1751987730781,0.36370929,2570.8,2570.5,5.96]
[1751987731233,0.36370929,2570.8,2570.6,3.89011635]
[1751987732826,0.36370929,2570.8,2570.5,9.85021352]
[1751987733332,0.36370929,2570.8,2570.5,5.96]
[1751987733827,0.36370929,2570.8,2570.5,9.85029043]
[1751987734127,0.36370929,2570.8,2570.5,3.89029043]
[1751987734310,4.25359542,2570.8,2570.4,6.1534]
[1751987734509,0.002,2570.8,2570.4,6.1534]
[1751987734732,0.78839909,2570.8,2570.4,0.1944]
[1751987734897,4.24790975,2570.7,2570.2,10.04403396]
[1751987735097,0.3578,2570.7,2570.3,3.89052245]
[1751987736433,0.3578,2570.7,2570.4,3.89044258]
[1751987736734,0.002,2570.8,2570.3,13.56082882]
[1751987736912,0.36315867,2570.8,2570.6,3.8900682]
[1751987737089,0.36315867,2570.8,2570.7,3.88999105]
[1751987738497,0.36327189,2570.8,2570.7,3.88999105]
[1751987738909,0.002,2570.8,2570.7,11.22289606]
[1751987739214,0.002,2570.8,2570.7,12.19189606]
[1751987740497,0.002,2570.8,2570.7,6.23289606]
[1751987740700,0.002,2570.8,2570.7,6.27179597]
[1751987740902,0.002,2570.8,2570.7,0.1944]
[1751987741110,0.002,2570.8,2570.6,3.89008112]
[1751987741917,0.002,2570.8,2570.7,3.88999105]
[1751987742109,0.002,2570.8,2570.7,10.65649105]
[1751987742944,0.002,2570.8,2570.7,10.85089105]
[1751987743239,0.002,2570.8,2570.7,12.32499143]
[1751987747951,0.002,2570.8,2570.7,6.36599143]
[1751987748115,0.36430677,2570.8,2570.7,6.36599143]
[1751987748315,0.36430677,2570.8,2570.7,11.51649143]
[1751987749233,0.36430677,2570.8,2570.7,5.55849143]
[1751987749542,0.36430677,2570.8,2570.7,11.55539134]
[1751987749852,0.36430677,2570.8,2570.7,11.51649143]
[1751987750050,0.002,2570.8,2570.7,11.51649143]
[1751987750350,0.002,2570.8,2570.7,12.06649143]
[1751987750958,0.002,2570.8,2570.7,12.85239143]
[1751987751335,0.36502931,2570.8,2570.7,12.85239143]
[1751987752030,0.002,2570.8,2570.7,12.85239143]
[1751987752228,0.36519424,2570.8,2570.7,12.85239143]
[1751987752558,0.36519392,2570.8,2570.7,12.85239143]
[1751987752745,0.002,2570.8,2570.7,12.85239143]
[1751987754862,0.002,2570.8,2570.7,6.89439143]
[1751987755081,0.36525925,2570.8,2570.7,12.85239143]
[1751987755427,0.36525925,2570.8,2570.7,6.34439143]
[1751987755623,0.36525925,2570.8,2570.7,12.30239143]
[1751987757441,0.36525925,2570.8,2570.7,6.34439143]
[1751987757637,0.36525925,2570.8,2570.7,12.34029134]
[1751987757876,0.36525925,2570.8,2570.7,12.30139143]
[1751987760980,0.36525925,2570.8,2570.7,19.08560822]
[1751987761897,0.36525925,2570.8,2570.7,19.63560822]
[1751987762317,0.36525925,2570.8,2570.7,13.12860822]
[1751987762511,0.36525925,2570.8,2570.7,19.08560822]
[1751987762713,0.36525925,2570.8,2570.7,12.34270822]
[1751987762914,0.36525925,2570.8,2570.7,16.82560784]
[1751987763071,0.36525925,2570.8,2570.7,4.08439105]
[1751987763270,0.36525925,2570.8,2570.7,10.04139105]
[1751987764219,0.36525925,2570.8,2570.7,4.08439105]
[1751987764388,0.36525925,2570.8,2570.7,0.1944]
[1751987764707,0.36525925,2570.8,2570.7,5.957]
[1751987764914,0.36525925,2570.8,2570.3,3.89051729]
[1751987765078,4.25332371,2570.7,2570.4,0.1944]
[1751987765278,0.52665925,2570.6,2570.4,0.1944]
[1751987765492,0.36325925,2570.5,2570.4,6.1514]
[1751987766106,0.36325925,2570.5,2570.4,16.8649663]
[1751987766306,0.36325925,2570.5,2570.4,17.64936185]
[1751987769589,0.36325925,2570.5,2570.4,16.82606185]
[1751987769929,0.36325925,2570.5,2570.4,0.1944]
[1751987770220,0.36325925,2570.5,2570.3,3.89059501]
[1751987770391,0.36293507,2570.4,2570.3,3.89059501]
[1751987770715,0.36293507,2570.4,2570.3,5.957]
[1751987770915,0.36293507,2570.4,2570.3,9.84759642]
[1751987771821,0.36293507,2570.4,2570.3,10.04199642]
[1751987773134,0.36293507,2570.4,2570.3,10.04299642]
[1751987776032,0.36293507,2570.4,2570.3,22.82724389]
[1751987776456,0.002,2570.8,2570.7,3.88999105]
[1751987776615,0.36448482,2570.8,2570.7,9.84799105]
[1751987778839,0.36448482,2570.8,2570.7,5.958]
[1751987779040,0.36448482,2570.8,2570.7,9.84799105]
[1751987779224,0.36448482,2570.8,2570.6,4.08445922]
[1751987779548,0.36248482,2570.7,2570.6,4.08445922]
[1751987779752,0.36248482,2570.7,2570.6,10.04245922]
[1751987780651,0.002,2570.8,2570.7,3.88999105]
[1751987780816,0.36452251,2570.8,2570.7,3.88999105]
[1751987781953,0.36452251,2570.8,2570.6,10.04245776]
[1751987782256,0.36252251,2570.7,2570.6,10.04245776]
[1751987782957,0.36252251,2570.7,2570.6,6.1514]
[1751987783325,0.36252251,2570.7,2570.6,10.04154237]
[1751987784551,0.36252251,2570.7,2570.6,4.08454237]
[1751987784762,0.36252251,2570.7,2570.6,10.04154237]
[1751987785058,0.52592251,2570.7,2570.6,5.957]
[1751987785255,0.96790051,2570.7,2570.6,5.957]
[1751987785828,0.96790051,2570.7,2570.5,5.957]
[1751987786055,0.36252251,2570.6,2570.1,3.89084014]
[1751987786258,0.1634,2570.4,2570.1,0.1944]
[1751987786464,0.1634,2570.4,2570.0,10.04238055]
[1751987786465,0.36252251,2570.3,2570.0,10.04238055]
[1751987786646,0.36252251,2570.2,2570.0,10.04238055]
[1751987786948,0.36252251,2570.1,2570.0,10.04238055]
[1751987787457,0.36252251,2570.1,2570.0,10.85388055]
[1751987787660,0.36252251,2570.1,2570.0,11.40388055]
[1751987787822,0.1634,2570.6,2570.5,3.89029371]
[1751987788028,0.52594319,2570.6,2570.5,3.89029371]
[1751987788929,0.52594319,2570.6,2570.4,9.8483644]
[1751987789258,0.36254319,2570.5,2570.4,9.8483644]
[1751987789640,0.36254319,2570.5,2570.4,5.958]
[1751987790158,0.36254319,2570.5,2570.3,4.08491475]
[1751987790360,0.36254319,2570.4,2570.2,3.89068665]
[1751987790660,0.36254319,2570.3,2570.2,0.1944]
[1751987790832,0.36254319,2570.3,2570.2,9.8487478]
[1751987791032,0.36254319,2570.3,2570.2,3.8907478]
[1751987791845,0.36254319,2570.3,2570.1,9.84882853]
[1751987792046,0.36254319,2570.2,2570.1,9.84882853]
[1751987792549,0.36254319,2570.2,2570.1,3.89082853]
[1751987793070,0.36254319,2570.2,2570.1,9.84782853]
[1751987795172,0.36254319,2570.2,2570.1,3.89082853]
[1751987795377,0.36254319,2570.2,2570.1,9.84882853]
[1751987796242,0.36254319,2570.2,2570.1,5.958]
[1751987796440,0.52594319,2570.2,2570.0,0.1944]
[1751987796645,0.36254319,2570.1,2570.0,0.1944]
[1751987797882,0.3578,2570.0,2569.5,5.957]
[1751987798183,0.55694319,2569.9,2569.7,3.8915044]
[1751987798386,0.36254319,2569.8,2569.6,3.89157387]
[1751987798683,0.36254319,2569.7,2569.6,3.89157387]
[1751987798884,0.1634,2570.7,2569.7,0.1944]
[1751987799070,10.0,2570.5,2569.8,5.99591353]
[1751987799391,0.36222216,2570.4,2570.2,3.89074335]
[1751987799576,0.36222216,2570.3,2570.2,3.89074335]
[1751987800481,0.36222216,2570.3,2570.2,11.66658791]
[1751987800848,0.36222216,2570.3,2570.2,18.45277523]
[1751987801988,0.36422216,2570.3,2570.2,18.45277523]
[1751987802667,0.36422216,2570.3,2570.2,19.00277523]
[1751987802851,0.36422216,2570.3,2570.2,12.21658791]
[1751987805796,0.002,2570.3,2570.2,12.21658791]
[1751987806211,0.36414863,2570.3,2570.2,12.21658791]
[1751987807314,0.36414863,2570.3,2570.2,22.80287225]
[1751987807886,0.002,2570.3,2570.2,22.80287225]
[1751987810312,0.002,2570.3,2570.2,12.21658791]
[1751987816833,0.002,2570.8,2570.7,3.88999105]
[1751987816994,0.36427317,2570.8,2570.7,10.74591089]
[1751987817199,0.36427317,2570.8,2570.7,21.48769532]
[1751987817399,0.36427317,2570.8,2570.7,10.90141098]
[1751987818335,0.002,2570.9,2570.8,4.43983973]
[1751987818638,1e-08,2570.9,2570.8,15.24433812]
[1751987818797,1e-08,2570.9,2570.8,19.05433221]
[1751987819198,1e-08,2571.1,2571.0,5.25083714]
[1751987819508,1e-08,2571.1,2571.0,31.83201685]
[1751987819710,1e-08,2571.4,2571.3,14.43908334]
[1751987820017,0.002,2571.9,2571.7,4.43847843]
[1751987820230,0.002,2571.9,2571.7,10.62776321]
[1751987820445,0.002,2571.9,2571.7,10.58887843]
[1751987823035,0.002,2571.9,2571.7,11.37917843]
[1751987824008,0.002,2571.9,2571.7,21.96546277]
[1751987824238,0.002,2571.9,2571.7,24.55086936]
[1751987825644,1e-08,2571.8,2571.7,24.55086936]
[1751987827044,1e-08,2571.8,2571.7,13.96158502]
[1751987827541,1e-08,2571.8,2571.7,8.00858502]
[1751987827744,1e-08,2571.8,2571.7,11.37617843]
[1751987828743,1e-08,2571.9,2571.8,4.43832724]
[1751987828942,1e-08,2571.9,2571.8,3.92721051]
[1751987830154,1e-08,2571.9,2571.8,4.47721051]
[1751987830337,1e-08,2571.9,2571.8,4.43832724]
[1751987830538,1e-08,2571.9,2571.8,7.41226656]
[1751987832255,1e-08,2571.9,2571.8,13.36426656]
[1751987832933,1e-08,2571.9,2571.8,20.1409236]
[1751987833259,1e-08,2571.9,2571.8,20.9458236]
[1751987833768,1e-08,2572.0,2571.9,4.43817605]
[1751987833977,1e-08,2572.0,2571.9,7.36874562]
[1751987834136,1e-08,2572.0,2571.9,7.56314562]
[1751987835441,0.002,2572.2,2572.1,15.19317372]
[1751987835442,1e-08,2572.2,2572.1,15.19317372]
[1751987835745,1e-08,2572.2,2572.1,31.72386199]
[1751987837762,1e-08,2572.2,2572.1,13.64190495]
[1751987838070,1e-08,2572.2,2572.1,10.03247372]
[1751987838278,1e-08,2572.2,2572.1,4.08147372]
[1751987838477,1e-08,2572.2,2572.1,10.07135245]
[1751987838651,1e-08,2572.2,2572.1,10.03247372]
[1751987839982,1e-08,2572.2,2572.1,10.03147372]
[1751987840537,1e-08,2572.2,2572.1,4.08147372]
[1751987840875,0.16340001,2572.2,2572.1,10.03147372]
[1751987843274,0.52417179,2572.2,2572.1,10.03147372]
[1751987843481,0.36077179,2572.2,2572.1,10.03147372]
[1751987843990,1e-08,2572.2,2572.1,10.03147372]
[1751987844154,0.36077179,2572.2,2572.1,10.03147372]
[1751987844356,0.36077179,2572.2,2572.1,4.08147372]
[1751987844556,0.36077179,2572.2,2572.1,10.03147372]
[1751987844985,0.36077179,2572.2,2572.1,18.87774418]
[1751987846503,0.36077179,2572.2,2572.1,28.87774418]
[1751987847378,1e-08,2572.2,2572.1,28.87774418]
[1751987847775,1e-08,2572.2,2572.1,29.42774418]
[1751987848295,0.36235893,2572.2,2572.1,23.44498714]
[1751987848762,0.36235893,2572.2,2572.1,17.49498714]
[1751987848967,0.36235893,2572.2,2572.1,22.89498714]
[1751987850503,1e-08,2572.2,2572.1,22.89498714]
[1751987850697,1e-08,2572.2,2572.1,23.44498714]
[1751987850902,0.002,2572.4,2572.1,23.44498714]
[1751987851103,1e-08,2572.4,2572.3,11.21422847]
[1751987851325,1e-08,2572.4,2572.3,10.58017143]
[1751987851516,1e-08,2572.4,2572.3,17.35682847]
[1751987853023,1e-08,2572.4,2572.3,10.58017143]
[1751987856192,1e-08,2572.4,2572.3,10.57917143]
[1751987856403,1e-08,2572.4,2572.3,13.03808293]
[1751987856603,1e-08,2572.4,2572.3,12.48808293]
[1751987857731,1e-08,2572.4,2572.3,13.03808293]
[1751987858433,1e-08,2572.4,2572.3,12.48808293]
[1751987861338,1e-08,2572.4,2572.3,13.32078293]
[1751987861526,1e-08,2572.4,2572.3,23.87078293]
[1751987862438,1e-08,2572.4,2572.3,17.92278293]
[1751987862640,1e-08,2572.4,2572.3,23.87078293]
[1751987863142,1e-08,2572.4,2572.3,23.03808293]
[1751987863813,1e-08,2572.4,2572.3,12.48808293]
[1751987864139,0.3622773,2572.4,2572.3,12.48708293]
[1751987864837,0.3622773,2572.4,2572.3,4.08117143]
[1751987865032,0.1634,2572.3,2572.2,3.88765409]
[1751987865336,0.52567729,2572.3,2572.2,9.83465409]
[1751987865717,0.36227729,2572.3,2572.2,9.83465409]
[1751987865923,0.36227729,2572.3,2572.2,10.02825409]
[1751987866223,1e-08,2572.4,2572.3,3.88757143]
[1751987866424,0.36220894,2572.4,2572.3,3.92644714]
[1751987866755,0.36220894,2572.4,2572.3,4.52644714]
[1751987866957,0.36220894,2572.4,2572.3,4.48757143]
[1751987867316,0.36220894,2572.4,2572.3,4.48857143]
[1751987868441,1e-08,2572.4,2572.3,4.48857143]
[1751987868743,0.36220894,2572.4,2572.3,4.52744714]
[1751987868943,0.36220894,2572.4,2572.3,4.48857143]
[1751987869749,1e-08,2572.4,2572.3,10.47544714]
[1751987869918,1e-08,2572.4,2572.3,11.96780155]
[1751987870949,1e-08,2572.4,2572.3,23.08654013]
[1751987872853,1e-08,2572.4,2572.3,12.51780155]
[1751987874850,1e-08,2572.4,2572.3,19.29320393]
[1751987876146,1e-08,2572.4,2572.3,12.51780155]
[1751987876353,1e-08,2572.4,2572.3,6.01980155]
[1751987876557,1e-08,2572.4,2572.3,11.96680155]
[1751987876860,0.36250659,2572.4,2572.3,4.48857143]
[1751987877062,0.36250659,2572.4,2572.3,10.43557143]
[1751987877935,0.52590659,2572.4,2572.3,0.601]
[1751987878136,0.52590659,2572.4,2572.3,6.548]
[1751987879262,0.52590659,2572.4,2572.3,0.601]
[1751987879839,0.52590659,2572.4,2572.3,4.48857143]
[1751987880364,0.36250659,2572.4,2572.3,4.68217143]
[1751987881236,0.36250659,2572.4,2572.3,13.49812422]
[1751987881237,1e-08,2572.4,2572.3,13.49812422]
[1751987881450,1e-08,2572.4,2572.3,14.27314851]
[1751987882850,1e-08,2572.4,2572.3,7.49774613]
[1751987883351,1e-08,2572.4,2572.3,7.53662184]
[1751987883765,1e-08,2572.4,2572.3,7.49774613]
[1751987888855,1e-08,2572.4,2572.3,6.68384613]
[1751987890481,1e-08,2572.4,2572.3,6.17272184]
[1751987891059,1e-08,2572.4,2572.3,10.66804714]
[1751987891255,1e-08,2572.4,2572.3,10.62917143]
[1751987892412,4.24972765,2572.4,2572.3,0.601]
[1751987892693,0.71930735,2572.4,2572.3,0.001]
[1751987892858,1.14428012,2572.4,2572.3,0.001]
[1751987893481,5.03170042,2572.4,2572.3,0.001]
[1751987894506,15.03170042,2572.4,2572.3,0.001]
[1751987896087,16.42179301,2572.4,2572.3,0.001]
[1751987897677,15.03170042,2572.4,2572.3,0.001]
[1751987899490,16.42018453,2572.4,2572.3,0.001]
[1751987900283,15.03170042,2572.4,2572.3,0.001]
[1751987900901,16.4197243,2572.4,2572.3,0.001]
[1751987902696,15.03170042,2572.4,2572.3,0.001]
[1751987904588,16.41884851,2572.4,2572.3,0.001]
[1751987905173,11.14428012,2572.4,2572.3,0.001]
[1751987905373,15.03170042,2572.4,2572.3,0.001]
[1751987905599,17.09228012,2572.4,2572.3,0.001]
[1751987906304,20.97970042,2572.4,2572.3,0.001]
[1751987906520,11.14428012,2572.4,2572.3,0.001]
[1751987906695,17.09228012,2572.4,2572.3,0.001]
[1751987907501,16.66730735,2572.4,2572.3,0.001]
[1751987908022,20.55472765,2572.4,2572.3,0.001]
[1751987908342,20.19242031,2572.4,2572.3,0.001]
[1751987908496,20.55372519,2572.4,2572.3,0.001]
[1751987910126,10.71830489,2572.4,2572.3,0.001]
[1751987910322,16.66630489,2572.4,2572.3,0.001]
[1751987910915,10.71830489,2572.4,2572.3,0.001]
[1751987911116,16.50290489,2572.4,2572.3,0.001]
[1751987911534,16.50290489,2572.4,2572.3,3.88857143]
[1751987911535,0.55490489,2572.4,2572.3,3.88857143]
[1751987911841,0.36130489,2572.4,2572.3,5.67137522]
[1751987912032,1e-08,2572.4,2572.3,5.67137522]
[1751987912537,1e-08,2572.4,2572.3,6.27137522]
[1751987912930,1e-08,2572.4,2572.3,6.23249951]
[1751987913232,1e-08,2572.4,2572.3,6.27137522]
[1751987913538,1e-08,2572.4,2572.3,6.23249951]
[1751987913733,0.43332055,2572.4,2572.3,6.23249951]
[1751987913940,0.43332055,2572.4,2572.3,6.82137522]
[1751987914306,0.43332055,2572.4,2572.3,6.22137522]
[1751987914626,0.43332055,2572.4,2572.3,6.18249951]
[1751987917447,0.43332055,2572.4,2572.3,12.72949951]
[1751987918747,1e-08,2572.4,2572.3,12.72949951]
[1751987919358,1e-08,2572.4,2572.3,22.72949951]
[1751987923368,1e-08,2572.4,2572.3,33.30086469]
[1751987925549,1e-08,2572.4,2572.3,22.72949951]
[1751987925764,1e-08,2572.4,2572.3,22.72749951]
[1751987926470,1e-08,2572.4,2572.3,16.78249951]
[1751987926975,1e-08,2572.4,2572.3,11.40479951]
[1751987927184,1e-08,2572.4,2572.3,4.68217143]
[1751987927473,1e-08,2572.4,2572.3,10.62717143]
[1751987927673,1e-08,2572.4,2572.3,4.68217143]